fUSD/lending_fUSD_20250519
["ID","MTS","AMOUNT","RATE_DAILY","PERIOD"]
[361608146,1747636240617,-400.0,0.00013698,2]
[361608147,1747636240627,-400.0,0.00013698,2]
[361608148,1747636240635,-573.9,0.00013698,2]
[361608149,1747636240645,-400.0,0.00013698,2]
[361608150,1747636240655,-400.0,0.00013698,2]
[361608151,1747636240663,-420.0,0.00013698,2]
[361608152,1747636240673,-400.0,0.00013698,2]
[361608153,1747636240684,-420.0,0.00013698,2]
[361608154,1747636240693,-420.0,0.00013698,2]
[361608155,1747636240703,-400.0,0.00013698,2]
[361608156,1747636240712,-400.0,0.00013698,2]
[361608157,1747636240721,-420.0,0.00013698,2]
[361608158,1747636240730,-405.08071707,0.00013698,2]
[361608159,1747636240739,-400.0,0.00013698,2]
[361608160,1747636240748,-400.0,0.00013698,2]
[361608161,1747636240757,-400.0,0.00013698,2]
[361608162,1747636240767,-400.0,0.00013698,2]
[361608163,1747636240775,-400.0,0.00013698,2]
[361608164,1747636240784,-400.0,0.00013698,2]
[361608165,1747636240793,-403.9152486,0.00013698,2]
[361608166,1747636240802,-406.0307666,0.00013698,2]
[361608167,1747636240811,-420.0,0.00013698,2]
[361608168,1747636240820,-401.97023752,0.00013698,2]
[361608169,1747636240829,-420.0,0.00013698,2]
[361608170,1747636240838,-400.0,0.00013698,2]
[361608171,1747636240847,-420.0,0.00013698,2]
[361608172,1747636240856,-400.0,0.00013698,2]
[361608173,1747636240865,-409.21389132,0.00013698,2]
[361608174,1747636240874,-400.0,0.00013698,2]
[361608175,1747636240883,-400.0,0.00013698,2]
[361608176,1747636240893,-701.41,0.00013698,2]
[361608177,1747636240902,-400.0,0.00013698,2]
[361608178,1747636240911,-420.0,0.00013698,2]
[361608179,1747636240920,-250.0,0.00013698,2]
[361608180,1747636240929,-405.15820895,0.00013698,2]
[361608181,1747636240940,-596.65,0.00013698,2]
[361608182,1747636240950,-400.0,0.00013698,2]
[361608183,1747636240959,-420.0,0.00013698,2]
[361608184,1747636240968,-400.0,0.00013698,2]
[361608185,1747636240977,-400.0,0.00013698,2]
[361608186,1747636240986,-400.0,0.00013698,2]
[361608187,1747636240995,-400.0,0.00013698,2]
[361608188,1747636241004,-400.0,0.00013698,2]
[361608189,1747636241013,-454.67,0.00013698,2]
[361608190,1747636241022,-420.0,0.00013698,2]
[361608191,1747636241034,-400.0,0.00013698,2]
[361608192,1747636241044,-407.67796584,0.00013698,2]
[361608193,1747636241053,-420.0,0.00013698,2]
[361608194,1747636241061,-400.0,0.00013698,2]
[361608195,1747636241070,-466.62,0.00013698,2]
[361608196,1747636241080,-400.0,0.00013698,2]
[361608197,1747636241089,-400.0,0.00013698,2]
[361608198,1747636241098,-492.29080574,0.00013698,2]
[361608199,1747636241107,-400.0,0.00013698,2]
[361608200,1747636241116,-507.99234207,0.00013698,2]
[361608201,1747636241125,-420.0,0.00013698,2]
[361608202,1747636241134,-420.0,0.00013698,2]
[361608203,1747636241143,-400.0,0.00013698,2]
[361608204,1747636241152,-400.0,0.00013698,2]
[361608205,1747636241161,-420.0,0.00013698,2]
[361608206,1747636241171,-400.0,0.00013698,2]
[361608207,1747636241180,-400.0,0.00013698,2]
[361608208,1747636241190,-420.0,0.00013698,2]
[361608209,1747636241199,-384.47550222,0.00013698,2]
[361608210,1747636241209,-400.0,0.00013698,2]
[361608211,1747636241218,-405.184051,0.00013698,2]
[361608212,1747636241228,-400.0,0.00013698,2]
[361608213,1747636241237,-420.0,0.00013698,2]
[361608214,1747636241247,-420.0,0.00013698,2]
[361608215,1747636241258,-400.0,0.00013698,2]
[361608216,1747636241268,-420.0,0.00013698,2]
[361608217,1747636241277,-420.0,0.00013698,2]
[361608218,1747636241286,-400.0,0.00013698,2]
[361608219,1747636241295,-400.0,0.00013698,2]
[361608220,1747636241304,-223.96365678,0.00013698,2]
[361608221,1747636241314,-400.0,0.00013698,2]
[361608222,1747636241323,-400.0,0.00013698,2]
[361608223,1747636241332,-420.0,0.00013698,2]
[361608224,1747636241341,-404.80928678,0.00013698,2]
[361608225,1747636241351,-400.0,0.00013698,2]
[361608226,1747636241360,-400.0,0.00013698,2]
[361608227,1747636241369,-420.0,0.00013698,2]
[361608228,1747636241378,-420.0,0.00013698,2]
[361608229,1747636241388,-400.0,0.00013698,2]
[361608230,1747636241397,-420.0,0.00013698,2]
[361608231,1747636241407,-400.0,0.00013698,2]
[361608232,1747636241416,-446.81,0.00013698,2]
[361608233,1747636241426,-409.15142023,0.00013698,2]
[361608234,1747636241435,-400.0,0.00013698,2]
[361608235,1747636241444,-400.0,0.00013698,2]
[361608236,1747636241454,-420.0,0.00013698,2]
[361608237,1747636241463,-400.0,0.00013698,2]
[361608238,1747636241472,-420.0,0.00013698,2]
[361608239,1747636241481,-475.40208848,0.00013698,2]
[361608240,1747636241490,-400.0,0.00013698,2]
[361608241,1747636241500,-420.0,0.00013698,2]
[361608242,1747636241511,-400.0,0.00013698,2]
[361608243,1747636241520,-400.0,0.00013698,2]
[361608244,1747636241530,-420.0,0.00013698,2]
[361608245,1747636241543,-420.0,0.00013698,2]
[361608246,1747636241552,-400.0,0.00013698,2]
[361608247,1747636241562,-420.0,0.00013698,2]
[361608248,1747636241571,-400.0,0.00013698,2]
[361608249,1747636241580,-420.0,0.00013698,2]
[361608250,1747636241590,-400.0,0.00013698,2]
[361608251,1747636241601,-409.68492825,0.00013698,2]
[361608252,1747636241611,-400.0,0.00013698,2]
[361608253,1747636241620,-400.0,0.00013698,2]
[361608254,1747636241630,-420.0,0.00013698,2]
[361608255,1747636241639,-400.0,0.00013698,2]
[361608256,1747636241649,-400.0,0.00013698,2]
[361608257,1747636241658,-400.0,0.00013698,2]
[361608258,1747636241668,-400.0,0.00013698,2]
[361608259,1747636241678,-500.0,0.00013698,2]
[361608260,1747636241688,-400.0,0.00013698,2]
[361608261,1747636241698,-420.0,0.00013698,2]
[361608262,1747636241707,-400.0,0.00013698,2]
[361608263,1747636241716,-420.0,0.00013698,2]
[361608264,1747636241727,-400.0,0.00013698,2]
[361608265,1747636241738,-400.0,0.00013698,2]
[361608266,1747636241747,-400.0,0.00013698,2]
[361608267,1747636241757,-420.0,0.00013698,2]
[361608268,1747636241767,-2274.52344468,0.00013698,2]
[361608269,1747636241776,-400.0,0.00013698,2]
[361608270,1747636241785,-400.0,0.00013698,2]
[361608271,1747636241794,-544.09,0.00013698,2]
[361608272,1747636241804,-400.0,0.00013698,2]
[361608273,1747636241813,-420.0,0.00013698,2]
[361608274,1747636241822,-400.0,0.00013698,2]
[361608275,1747636241831,-420.0,0.00013698,2]
[361608276,1747636241840,-420.0,0.00013698,2]
[361608277,1747636241849,-400.57331112,0.00013698,2]
[361608278,1747636241859,-420.0,0.00013698,2]
[361608279,1747636241867,-481.03967614,0.00013698,2]
[361608280,1747636241877,-400.0,0.00013698,2]
[361608281,1747636241886,-420.0,0.00013698,2]
[361608282,1747636241895,-400.0,0.00013698,2]
[361608283,1747636241904,-400.0,0.00013698,2]
[361608284,1747636241913,-400.0,0.00013698,2]
[361608285,1747636241922,-420.0,0.00013698,2]
[361608286,1747636241932,-401.07433648,0.00013698,2]
[361608287,1747636241942,-420.0,0.00013698,2]
[361608288,1747636241951,-420.0,0.00013698,2]
[361608289,1747636241960,-420.0,0.00013698,2]
[361608290,1747636241970,-400.0,0.00013698,2]
[361608291,1747636241979,-500.0,0.00013698,2]
[361608292,1747636241988,-400.0,0.00013698,2]
[361608293,1747636241997,-400.0,0.00013698,2]
[361608294,1747636242007,-420.0,0.00013698,2]
[361608295,1747636242016,-420.0,0.00013698,2]
[361608296,1747636242026,-400.0,0.00013698,2]
[361608297,1747636242036,-400.0,0.00013698,2]
[361608298,1747636242045,-420.0,0.00013698,2]
[361608299,1747636242055,-403.64054502,0.00013698,2]
[361608300,1747636242064,-402.83561577,0.00013698,2]
[361608301,1747636242073,-452.68,0.00013698,2]
[361608302,1747636242082,-787.66,0.00013698,2]
[361608303,1747636242092,-420.0,0.00013698,2]
[361608304,1747636242101,-438.59519348,0.00013698,2]
[361608305,1747636242110,-400.0,0.00013698,2]
[361608306,1747636242119,-420.0,0.00013698,2]
[361608307,1747636242128,-420.0,0.00013698,2]
[361608308,1747636242138,-420.0,0.00013698,2]
[361608309,1747636242147,-400.0,0.00013698,2]
[361608310,1747636242156,-400.0,0.00013698,2]
[361608311,1747636242165,-420.0,0.00013698,2]
[361608312,1747636242175,-332.11453447,0.00013698,2]
[361608313,1747636242186,-400.0,0.00013698,2]
[361608314,1747636242195,-420.0,0.00013698,2]
[361608315,1747636242204,-500.0,0.00013698,2]
[361608316,1747636242214,-420.0,0.00013698,2]
[361608317,1747636242223,-510.47468195,0.00013698,2]
[361608318,1747636242232,-400.0,0.00013698,2]
[361608319,1747636242242,-420.0,0.00013698,2]
[361608320,1747636242251,-420.0,0.00013698,2]
[361608321,1747636242260,-400.0,0.00013698,2]
[361608322,1747636242269,-380.0,0.00013698,2]
[361608323,1747636242278,-612.24,0.00013698,2]
[361608324,1747636242288,-250.76352385,0.00013698,2]
[361608325,1747636242297,-773.66,0.00013698,2]
[361608326,1747636242306,-400.0,0.00013698,2]
[361608327,1747636242315,-380.0,0.00013698,2]
[361608328,1747636242325,-420.0,0.00013698,2]
[361608330,1747636242535,-420.0,0.00013698,2]
[361608331,1747636242586,-420.0,0.00013698,2]
[361608333,1747636242596,-377.95301251,0.00013698,2]
[361608335,1747636242608,-420.0,0.00013698,2]
[361608337,1747636242617,-369.65599488,0.00013698,2]
[361608339,1747636242626,-531.56,0.00013698,2]
[361608341,1747636242636,-420.0,0.00013698,2]
[361608342,1747636242646,-717.53,0.00013698,2]
[361608344,1747636242656,-420.0,0.00013698,2]
[361608346,1747636242666,-466.56,0.00013698,2]
[361608348,1747636242676,-605.62,0.00013698,2]
[361608349,1747636242689,-420.0,0.00013698,2]
[361608351,1747636242699,-420.0,0.00013698,2]
[361608353,1747636242710,-420.0,0.00013698,2]
[361608355,1747636242720,-420.0,0.00013698,2]
[361608357,1747636242731,-380.0,0.00013698,2]
[361608359,1747636242742,-420.0,0.00013698,2]
[361608361,1747636242753,-420.0,0.00013698,2]
[361608363,1747636242763,-745.01,0.00013698,2]
[361608364,1747636242773,-420.0,0.00013698,2]
[361608366,1747636242783,-400.0,0.00013698,2]
[361608368,1747636242794,-458.06,0.00013698,2]
[361608369,1747636242806,-360.0,0.00013698,2]
[361608370,1747636242815,-1010.59104096,0.00013698,2]
[361608371,1747636242825,-1038.16,0.00013698,2]
[361608372,1747636242834,-420.0,0.00013698,2]
[361608373,1747636242844,-420.0,0.00013698,2]
[361608374,1747636242853,-420.0,0.00013698,2]
[361608375,1747636242862,-420.0,0.00013698,2]
[361608376,1747636242871,-617.17,0.00013698,2]
[361608377,1747636242880,-518.19,0.00013698,2]
[361608378,1747636242890,-460.73,0.00013698,2]
[361608379,1747636242899,-913.3,0.00013698,2]
[361608380,1747636242908,-380.0,0.00013698,2]
[361608381,1747636242917,-447.63,0.00013698,2]
[361608382,1747636242927,-420.0,0.00013698,2]
[361608383,1747636242938,-525.33,0.00013698,2]
[361608384,1747636242948,-420.0,0.00013698,2]
[361608385,1747636242957,-420.0,0.00013698,2]
[361608386,1747636242966,-712.28,0.00013698,2]
[361608387,1747636242975,-527.71,0.00013698,2]
[361608388,1747636242984,-420.0,0.00013698,2]
[361608389,1747636242994,-584.99,0.00013698,2]
[361608390,1747636243003,-420.0,0.00013698,2]
[361608391,1747636243012,-560.5,0.00013698,2]
[361608392,1747636243022,-488.13,0.00013698,2]
[361608393,1747636243031,-420.0,0.00013698,2]
[361608394,1747636243041,-420.0,0.00013698,2]
[361608396,1747636243050,-400.0,0.00013698,2]
[361608397,1747636243059,-420.0,0.00013698,2]
[361608398,1747636243068,-420.0,0.00013698,2]
[361608399,1747636243078,-420.0,0.00013698,2]
[361608400,1747636243087,-420.0,0.00013698,2]
[361608401,1747636243096,-420.0,0.00013698,2]
[361608402,1747636243105,-420.0,0.00013698,2]
[361608403,1747636243114,-420.0,0.00013698,2]
[361608404,1747636243123,-420.0,0.00013698,2]
[361608405,1747636243133,-400.0,0.00013698,2]
[361608406,1747636243143,-1028.97,0.00013698,2]
[361608407,1747636243152,-523.87,0.00013698,2]
[361608408,1747636243162,-460.77,0.00013698,2]
[361608409,1747636243171,-420.0,0.00013698,2]
[361608410,1747636243180,-431.13,0.00013698,2]
[361608411,1747636243192,-420.0,0.00013698,2]
[361608412,1747636243202,-420.0,0.00013698,2]
[361608413,1747636243211,-560.78,0.00013698,2]
[361608414,1747636243220,-500.0,0.00013698,2]
[361608415,1747636243229,-420.0,0.00013698,2]
[361608416,1747636243239,-420.0,0.00013698,2]
[361608417,1747636243248,-420.0,0.00013698,2]
[361608418,1747636243257,-370.0,0.00013698,2]
[361608419,1747636243266,-856.35,0.00013698,2]
[361608420,1747636243277,-420.0,0.00013698,2]
[361608421,1747636243287,-547.94,0.00013698,2]
[361608422,1747636243296,-420.0,0.00013698,2]
[361608423,1747636243305,-420.0,0.00013698,2]
[361608424,1747636243314,-420.0,0.00013698,2]
[361608425,1747636243324,-420.0,0.00013698,2]
[361608426,1747636243333,-420.0,0.00013698,2]
[361608427,1747636243342,-2044.89,0.00013698,2]
[361608428,1747636243352,-420.0,0.00013698,2]
[361608429,1747636243361,-476.64346781,0.00013698,2]
[361608430,1747636243370,-422.92,0.00013698,2]
[361608431,1747636243379,-663.97,0.00013698,2]
[361608432,1747636243389,-400.0,0.00013698,2]
[361608433,1747636243398,-420.0,0.00013698,2]
[361608434,1747636243408,-616.73,0.00013698,2]
[361608435,1747636243417,-420.0,0.00013698,2]
[361608436,1747636243426,-698.94,0.00013698,2]
[361608437,1747636243436,-365.8027929,0.00013698,2]
[361608438,1747636243445,-585.51,0.00013698,2]
[361608439,1747636243455,-420.0,0.00013698,2]
[361608440,1747636243464,-420.0,0.00013698,2]
[361608441,1747636243473,-410.63176689,0.00013698,2]
[361608442,1747636243482,-497.39968711,0.00013698,2]
[361608443,1747636243492,-484.7823281,0.00013698,2]
[361608444,1747636243501,-420.0,0.00013698,2]
[361608445,1747636243510,-420.0,0.00013698,2]
[361608446,1747636243519,-499.1809085,0.00013698,2]
[361608447,1747636243529,-879.53,0.00013698,2]
[361608448,1747636243538,-426.79,0.00013698,2]
[361608449,1747636243547,-420.0,0.00013698,2]
[361608450,1747636243556,-420.0,0.00013698,2]
[361608451,1747636243565,-380.0,0.00013698,2]
[361608452,1747636243574,-420.0,0.00013698,2]
[361608453,1747636243584,-420.0,0.00013698,2]
[361608454,1747636243596,-420.0,0.00013698,2]
[361608455,1747636243610,-420.0,0.00013698,2]
[361608456,1747636243620,-664.97,0.00013698,2]
[361608457,1747636243631,-611.78,0.00013698,2]
[361608458,1747636243640,-905.36,0.00013698,2]
[361608459,1747636243649,-400.0,0.00013698,2]
[361608460,1747636243658,-535.68,0.00013698,2]
[361608461,1747636243667,-598.25,0.00013698,2]
[361608462,1747636243678,-998.78,0.00013698,2]
[361608463,1747636243690,-634.16,0.00013698,2]
[361608464,1747636243699,-993.14,0.00013698,2]
[361608465,1747636243708,-420.0,0.00013698,2]
[361608466,1747636243717,-727.66,0.00013698,2]
[361608467,1747636243726,-420.0,0.00013698,2]
[361608468,1747636243737,-420.0,0.00013698,2]
[361608469,1747636243747,-1146.88,0.00013698,2]
[361608470,1747636243757,-451.7,0.00013698,2]
[361608471,1747636243766,-420.0,0.00013698,2]
[361608472,1747636243775,-420.0,0.00013698,2]
[361608473,1747636243784,-420.0,0.00013698,2]
[361608474,1747636243795,-525.99,0.00013698,2]
[361608475,1747636243808,-400.0,0.00013698,2]
[361608476,1747636243823,-420.0,0.00013698,2]
[361608477,1747636243836,-420.0,0.00013698,2]
[361608478,1747636243846,-596.02,0.00013698,2]
[361608479,1747636243856,-405.30858522,0.00013698,2]
[361608480,1747636243866,-450.08,0.00013698,2]
[361608481,1747636243876,-934.91,0.00013698,2]
[361608482,1747636243886,-420.0,0.00013698,2]
[361608483,1747636243897,-420.0,0.00013698,2]
[361608484,1747636243907,-400.0,0.00013698,2]
[361608485,1747636243917,-895.19,0.00013698,2]
[361608486,1747636243926,-420.0,0.00013698,2]
[361608487,1747636243935,-400.0,0.00013698,2]
[361608488,1747636243944,-420.0,0.00013698,2]
[361608489,1747636243954,-420.0,0.00013698,2]
[361608490,1747636243964,-1269.52,0.00013698,2]
[361608491,1747636243974,-502.84,0.00013698,2]
[361608492,1747636243983,-400.67328728,0.00013698,2]
[361608493,1747636243993,-420.0,0.00013698,2]
[361608494,1747636244002,-777.99,0.00013698,2]
[361608495,1747636244012,-420.0,0.00013698,2]
[361608496,1747636244022,-420.0,0.00013698,2]
[361608497,1747636244031,-420.0,0.00013698,2]
[361608498,1747636244040,-420.0,0.00013698,2]
[361608499,1747636244050,-932.15,0.00013698,2]
[361608500,1747636244060,-1719.62,0.00013698,2]
[361608501,1747636244069,-201.8802588,0.00013698,2]
[361608502,1747636244078,-420.0,0.00013698,2]
[361608503,1747636244088,-420.0,0.00013698,2]
[361608504,1747636244097,-420.0,0.00013698,2]
[361608505,1747636244107,-1200.81,0.00013698,2]
[361608506,1747636244117,-420.0,0.00013698,2]
[361608507,1747636244126,-420.0,0.00013698,2]
[361608508,1747636244136,-420.0,0.00013698,2]
[361608509,1747636244145,-420.0,0.00013698,2]
[361608510,1747636244155,-566.10954565,0.00013698,2]
[361608511,1747636244164,-643.41,0.00013698,2]
[361608512,1747636244174,-265.09067967,0.00013698,2]
[361608513,1747636244183,-420.0,0.00013698,2]
[361608514,1747636244193,-563.8242143,0.00013698,2]
[361608515,1747636244202,-420.0,0.00013698,2]
[361608516,1747636244212,-420.0,0.00013698,2]
[361608517,1747636244222,-502.01937361,0.00013698,2]
[361608518,1747636244231,-420.0,0.00013698,2]
[361608519,1747636244241,-544.19,0.00013698,2]
[361608520,1747636244251,-420.0,0.00013698,2]
[361608521,1747636244261,-420.0,0.00013698,2]
[361608522,1747636244271,-472.79,0.00013698,2]
[361608523,1747636244280,-438.57,0.00013698,2]
[361608524,1747636244290,-420.0,0.00013698,2]
[361608525,1747636244299,-420.0,0.00013698,2]
[361608526,1747636244309,-501.27,0.00013698,2]
[361608527,1747636244318,-420.0,0.00013698,2]
[361608528,1747636244327,-400.0,0.00013698,2]
[361608529,1747636244337,-450.32,0.00013698,2]
[361608530,1747636244346,-420.0,0.00013698,2]
[361608531,1747636244355,-429.29,0.00013698,2]
[361608532,1747636244365,-420.0,0.00013698,2]
[361608533,1747636244375,-505.16,0.00013698,2]
[361608534,1747636244384,-420.0,0.00013698,2]
[361608535,1747636244393,-420.0,0.00013698,2]
[361608536,1747636244403,-420.0,0.00013698,2]
[361608537,1747636244412,-841.96,0.00013698,2]
[361608538,1747636244422,-676.99,0.00013698,2]
[361608539,1747636244431,-400.0,0.00013698,2]
[361608540,1747636244441,-420.0,0.00013698,2]
[361608541,1747636244451,-784.52,0.00013698,2]
[361608542,1747636244460,-926.44,0.00013698,2]
[361608543,1747636244470,-487.65,0.00013698,2]
[361608544,1747636244479,-420.0,0.00013698,2]
[361608545,1747636244489,-809.71,0.00013698,2]
[361608546,1747636244498,-420.0,0.00013698,2]
[361608547,1747636244507,-400.0,0.00013698,2]
[361608548,1747636244517,-1029.69,0.00013698,2]
[361608549,1747636244526,-420.0,0.00013698,2]
[361608550,1747636244536,-420.0,0.00013698,2]
[361608551,1747636244545,-420.0,0.00013698,2]
[361608552,1747636244555,-420.0,0.00013698,2]
[361608553,1747636244564,-540.07,0.00013698,2]
[361608554,1747636244574,-420.0,0.00013698,2]
[361608555,1747636244584,-404.16548153,0.00013698,2]
[361608556,1747636244594,-1455.51,0.00013698,2]
[361608557,1747636244605,-420.0,0.00013698,2]
[361608558,1747636244615,-512.02865456,0.00013698,2]
[361608559,1747636244625,-551.77,0.00013698,2]
[361608560,1747636244634,-765.87,0.00013698,2]
[361608561,1747636244643,-420.0,0.00013698,2]
[361608562,1747636244653,-479.08,0.00013698,2]
[361608563,1747636244663,-420.0,0.00013698,2]
[361608564,1747636244673,-871.11,0.00013698,2]
[361608565,1747636244684,-420.0,0.00013698,2]
[361608566,1747636244693,-420.0,0.00013698,2]
[361608567,1747636244702,-602.48,0.00013698,2]
[361608568,1747636244712,-263.14069619,0.00013698,2]
[361608569,1747636244721,-420.0,0.00013698,2]
[361608570,1747636244730,-458.6,0.00013698,2]
[361608571,1747636244740,-500.0,0.00013698,2]
[361608572,1747636244749,-500.0,0.00013698,2]
[361608573,1747636244758,-380.0,0.00013698,2]
[361608574,1747636244768,-420.0,0.00013698,2]
[361608575,1747636244778,-400.0,0.00013698,2]
[361608576,1747636244787,-420.0,0.00013698,2]
[361608577,1747636244797,-620.0,0.00013698,2]
[361608578,1747636244806,-420.0,0.00013698,2]
[361608579,1747636244816,-420.0,0.00013698,2]
[361608580,1747636244825,-420.0,0.00013698,2]
[361608581,1747636244835,-420.0,0.00013698,2]
[361608582,1747636244844,-420.0,0.00013698,2]
[361608583,1747636244853,-736.4,0.00013698,2]
[361608584,1747636244863,-420.0,0.00013698,2]
[361608585,1747636244872,-1060.15,0.00013698,2]
[361608586,1747636244882,-420.0,0.00013698,2]
[361608587,1747636244891,-420.0,0.00013698,2]
[361608588,1747636244901,-420.0,0.00013698,2]
[361608589,1747636244910,-712.49,0.00013698,2]
[361608590,1747636244920,-1000.54,0.00013698,2]
[361608591,1747636244930,-680.49,0.00013698,2]
[361608592,1747636244940,-917.76,0.00013698,2]
[361608593,1747636244949,-420.0,0.00013698,2]
[361608594,1747636244959,-400.0,0.00013698,2]
[361608595,1747636244968,-420.0,0.00013698,2]
[361608596,1747636244978,-423.86,0.00013698,2]
[361608597,1747636244987,-2111.89,0.00013698,2]
[361608598,1747636244997,-420.0,0.00013698,2]
[361608599,1747636245007,-420.0,0.00013698,2]
[361608600,1747636245017,-401.90098463,0.00013698,2]
[361608601,1747636245026,-400.0,0.00013698,2]
[361608602,1747636245036,-420.0,0.00013698,2]
[361608603,1747636245046,-420.0,0.00013698,2]
[361608604,1747636245055,-1095.11,0.00013698,2]
[361608605,1747636245065,-420.0,0.00013698,2]
[361608606,1747636245074,-432.93,0.00013698,2]
[361608607,1747636245083,-420.0,0.00013698,2]
[361608608,1747636245093,-1298.48,0.00013698,2]
[361608609,1747636245102,-768.81,0.00013698,2]
[361608610,1747636245111,-760.9,0.00013698,2]
[361608611,1747636245121,-420.0,0.00013698,2]
[361608612,1747636245130,-776.11,0.00013698,2]
[361608613,1747636245140,-165.67030422,0.00013698,2]
[361608614,1747636245151,-760.9,0.00013698,2]
[361608615,1747636245159,-595.64,0.00013698,2]
[361608616,1747636245169,-400.0,0.00013698,2]
[361608617,1747636245179,-571.26,0.00013698,2]
[361608618,1747636245190,-737.38,0.00013698,2]
[361608619,1747636245199,-420.0,0.00013698,2]
[361608620,1747636245209,-420.0,0.00013698,2]
[361608621,1747636245219,-420.0,0.00013698,2]
[361608622,1747636245229,-380.0,0.00013698,2]
[361608623,1747636245239,-400.0,0.00013698,2]
[361608624,1747636245249,-585.04,0.00013698,2]
[361608625,1747636245258,-1201.16,0.00013698,2]
[361608626,1747636245268,-420.0,0.00013698,2]
[361608627,1747636245278,-420.0,0.00013698,2]
[361608628,1747636245287,-400.0,0.00013698,2]
[361608629,1747636245297,-400.0,0.00013698,2]
[361608630,1747636245306,-403.53732409,0.00013698,2]
[361608631,1747636245316,-443.65,0.00013698,2]
[361608632,1747636245325,-420.0,0.00013698,2]
[361608633,1747636245335,-420.0,0.00013698,2]
[361608634,1747636245344,-527.52864189,0.00013698,2]
[361608635,1747636245353,-589.92,0.00013698,2]
[361608636,1747636245362,-420.0,0.00013698,2]
[361608637,1747636245371,-575.81,0.00013698,2]
[361608638,1747636245380,-616.0,0.00013698,2]
[361608639,1747636245389,-420.0,0.00013698,2]
[361608640,1747636245398,-573.75,0.00013698,2]
[361608641,1747636245407,-420.0,0.00013698,2]
[361608642,1747636245417,-350.0,0.00013698,2]
[361608643,1747636245426,-463.33503569,0.00013698,2]
[361608644,1747636245437,-420.0,0.00013698,2]
[361608645,1747636245446,-420.0,0.00013698,2]
[361608646,1747636245456,-1111.28,0.00013698,2]
[361608647,1747636245467,-420.0,0.00013698,2]
[361608648,1747636245477,-500.62194233,0.00013698,2]
[361608649,1747636245487,-429.76,0.00013698,2]
[361608650,1747636245496,-881.58,0.00013698,2]
[361608651,1747636245506,-420.0,0.00013698,2]
[361608652,1747636245516,-400.0,0.00013698,2]
[361608653,1747636245525,-420.0,0.00013698,2]
[361608654,1747636245534,-484.94,0.00013698,2]
[361608655,1747636245544,-663.26,0.00013698,2]
[361608656,1747636245553,-400.0,0.00013698,2]
[361608657,1747636245562,-1098.59,0.00013698,2]
[361608659,1747636245571,-406.72674275,0.00013698,2]
[361608660,1747636245581,-420.0,0.00013698,2]
[361608661,1747636245590,-500.0,0.00013698,2]
[361608662,1747636245601,-500.0,0.00013698,2]
[361608663,1747636245612,-500.0,0.00013698,2]
[361608664,1747636245621,-1070.38,0.00013698,2]
[361608665,1747636245631,-568.11,0.00013698,2]